bitfinex/quotes_SOLUSD_20230401
["timestamp","ask_amount","ask_price","bid_price","bid_amount"]
[1680372409706,131.921,20.95,20.934,10.0]
[1680372409903,10.0,20.949,20.935,20.0]
[1680372411317,10.0,20.949,20.936,17.0]
[1680372411502,10.0,20.949,20.937,10.0]
[1680372413216,131.921,20.95,20.937,10.0]
[1680372413418,131.921,20.95,20.939,10.0]
[1680372423043,131.921,20.95,20.937,10.0]
[1680372423232,131.921,20.95,20.939,10.0]
[1680372426146,10.0,20.949,20.939,10.0]
[1680372426339,10.0,20.949,20.937,10.0]
[1680372426539,10.0,20.949,20.938,17.0]
[1680372428147,109.1757,20.944,20.938,17.0]
[1680372435353,109.1757,20.944,20.936,10.0]
[1680372435853,109.1757,20.944,20.937,17.0]
[1680372442652,131.921,20.95,20.937,17.0]
[1680372442861,131.921,20.95,20.938,10.0]
[1680372443050,131.921,20.95,20.939,17.0]
[1680372443252,131.921,20.95,20.94,10.0]
[1680372443461,131.921,20.95,20.941,17.0]
[1680372445560,110.241,20.95,20.941,17.0]
[1680372456482,131.921,20.95,20.935,20.0]
[1680372456862,10.0,20.949,20.935,20.0]
[1680372458763,10.0,20.949,20.936,17.0]
[1680372463378,21.68,20.95,20.936,17.0]
[1680372463577,21.68,20.95,20.937,10.0]
[1680372463772,21.68,20.95,20.939,10.0]
[1680372463966,21.68,20.95,20.94,17.0]
[1680372464366,21.68,20.95,20.941,10.0]
[1680372464582,21.68,20.95,20.942,17.0]
[1680372466978,10.0,20.954,20.942,17.0]
[1680372471187,128.7496,20.955,20.942,17.0]
[1680372471690,10.0,20.954,20.942,17.0]
[1680372473675,10.0,20.954,20.94,17.0]
[1680372474075,10.0,20.954,20.941,10.0]
[1680372474276,10.0,20.954,20.942,17.0]
[1680372485009,21.68,20.95,20.936,7.17215888]
[1680372485306,17.0,20.949,20.931,129.19]
[1680372485490,10.0,20.948,20.931,129.19]
[1680372485692,10.0,20.948,20.932,17.17215888]
[1680372485988,10.0,20.948,20.932,10.0]
[1680372486197,10.0,20.948,20.933,45.9422579]
[1680372486394,10.0,20.948,20.934,20.0]
[1680372487300,10.0,20.949,20.934,20.0]
[1680372487494,10.0,20.949,20.936,10.0]
[1680372487696,10.0,20.949,20.938,10.0]
[1680372490208,10.0,20.949,20.939,17.0]
[1680372490595,10.0,20.949,20.936,10.0]
[1680372490809,10.0,20.949,20.937,17.0]
[1680372491696,10.0,20.949,20.934,20.0]
[1680372491892,17.0,20.948,20.934,20.0]
[1680372492206,17.0,20.948,20.932,20.0]
[1680372492410,17.0,20.948,20.931,20.0]
[1680372492613,10.0,20.947,20.931,20.0]
[1680372492807,17.0,20.946,20.931,20.0]
[1680372493203,10.0,20.945,20.931,20.0]
[1680372495425,10.0,20.945,20.932,10.0]
[1680372495601,10.0,20.949,20.933,20.0]
[1680372495796,21.68,20.95,20.933,146.0705]
[1680372496519,21.68,20.95,20.934,10.0]
[1680372496814,21.68,20.95,20.935,37.0]
[1680372497012,21.68,20.95,20.936,10.0]
[1680372497211,21.68,20.95,20.938,10.0]
[1680372497415,54.28,20.96,20.938,10.0]
[1680372497619,54.28,20.96,20.939,17.0]
[1680372499113,118.7496,20.955,20.939,17.0]
[1680372499508,118.7496,20.955,20.94,10.0]
[1680372499716,118.7496,20.955,20.941,17.0]
[1680372500510,118.7496,20.955,20.942,10.0]
[1680372500718,118.7496,20.955,20.943,17.0]
[1680372503732,118.7496,20.955,20.94,23.876]
[1680372503733,10.0,20.954,20.94,23.876]
[1680372503937,10.0,20.954,20.941,17.0]
[1680372504238,10.0,20.954,20.938,10.0]
[1680372504436,17.0,20.953,20.938,10.0]
[1680372504629,10.0,20.952,20.938,10.0]
[1680372505747,10.0,20.952,20.94,10.0]
[1680372506938,10.0,20.954,20.94,10.0]
[1680372507330,118.7496,20.955,20.942,10.0]
[1680372507542,118.7496,20.955,20.943,17.0]
[1680372507730,118.7496,20.955,20.944,10.0]
[1680372508868,118.7496,20.955,20.942,10.0]
[1680372509046,118.7496,20.955,20.943,17.0]
[1680372511369,10.0,20.954,20.943,17.0]
[1680372512964,29.099857,20.954,20.943,17.0]
[1680372514672,19.099857,20.954,20.943,17.0]
[1680372517275,10.0,20.953,20.94,10.0]
[1680372517463,10.0,20.953,20.941,17.0]
[1680372521373,10.0,20.953,20.938,10.0]
[1680372522865,10.0,20.953,20.939,17.0]
[1680372524881,10.0,20.951,20.935,30.0]
[1680372525178,10.0,20.951,20.937,17.0]
[1680372525366,17.0,20.95,20.935,30.0]
[1680372525568,10.0,20.949,20.935,30.0]
[1680372528060,10.0,20.949,20.935,20.0]
[1680372531266,10.0,20.947,20.935,20.0]
[1680372538779,10.0,20.949,20.935,20.0]
[1680372538981,118.7496,20.955,20.937,10.0]
[1680372539183,118.7496,20.955,20.938,17.0]
[1680372539577,118.7496,20.955,20.939,10.0]
[1680372539772,118.7496,20.955,20.941,10.0]
[1680372542884,118.7496,20.955,20.939,10.0]
[1680372543082,118.7496,20.955,20.937,10.0]
[1680372543271,17.0,20.952,20.937,10.0]
[1680372543478,17.0,20.952,20.932,120.8845]
[1680372543674,17.0,20.952,20.933,109.0705]
[1680372543879,10.0,20.949,20.933,109.0705]
[1680372544073,17.0,20.948,20.934,20.0]
[1680372544482,10.0,20.947,20.934,20.0]
[1680372545077,17.0,20.948,20.934,20.0]
[1680372545285,10.0,20.949,20.934,20.0]
[1680372545286,10.0,20.949,20.935,27.0]
[1680372546493,27.14,20.95,20.935,27.0]
[1680372546494,10.0,20.951,20.935,27.0]
[1680372547486,19.103327,20.95,20.935,27.0]
[1680372547686,10.0,20.949,20.935,27.0]
[1680372557093,10.0,20.949,20.934,27.17215888]
[1680372557285,10.0,20.947,20.934,27.17215888]
[1680372558186,10.0,20.947,20.934,37.17215888]
[1680372558586,10.0,20.947,20.934,29.85174788]
[1680372564113,10.0,20.947,20.935,10.0]
[1680372565715,17.0,20.948,20.935,10.0]
[1680372568113,10.0,20.949,20.935,10.0]
[1680372568414,10.0,20.947,20.935,10.0]
[1680372571895,17.0,20.948,20.935,10.0]
[1680372576017,10.0,20.949,20.935,10.0]
[1680372577615,21.71,20.95,20.935,10.0]
[1680372577817,17.0,20.949,20.935,10.0]
[1680372579110,21.71,20.95,20.935,10.0]
[1680372579317,21.71,20.95,20.937,10.0]
[1680372587123,21.71,20.95,20.939,10.0]
[1680372588418,20.71,20.95,20.939,10.0]
[1680372589524,20.71,20.95,20.937,10.0]
[1680372589824,20.71,20.95,20.938,17.0]
[1680372604937,20.71,20.95,20.939,10.0]
[1680372605146,20.71,20.95,20.94,17.0]
[1680372605437,20.71,20.95,20.941,10.0]
[1680372606935,10.0,20.953,20.941,10.0]
[1680372608244,29.100425,20.954,20.941,10.0]
[1680372608444,19.100425,20.954,20.941,10.0]
[1680372612645,21.53,20.95,20.938,14.24401561]
[1680372612853,21.53,20.95,20.939,17.0]
[1680372613246,10.0,20.949,20.939,17.0]
[1680372619551,10.0,20.949,20.932,120.8845]
[1680372619755,10.0,20.949,20.936,17.0]
[1680372624647,10.0,20.949,20.935,7.17215888]
[1680372624849,21.71,20.94,20.923,11.15619723]
[1680372625044,10.0,20.939,20.925,10.0]
[1680372625746,10.0,20.939,20.924,50.0]
[1680372625954,10.0,20.939,20.925,10.0]
[1680372626141,10.0,20.939,20.924,20.0]
[1680372626343,17.0,20.938,20.924,20.0]
[1680372626548,10.0,20.937,20.924,20.0]
[1680372626952,10.0,20.937,20.925,10.0]
[1680372634258,10.0,20.939,20.925,10.0]
[1680372649851,21.71,20.94,20.925,10.0]
[1680372650052,31.43505382,20.949,20.926,17.0]
[1680372650252,17.17215888,20.949,20.926,17.0]
[1680372650652,17.17215888,20.949,20.927,10.0]
[1680372650855,10.0,20.947,20.928,17.0]
[1680372651170,10.0,20.947,20.929,10.0]
[1680372651469,10.0,20.947,20.93,17.0]
[1680372651669,10.0,20.947,20.931,10.0]
[1680372654654,10.0,20.949,20.933,10.0]
[1680372654863,10.0,20.949,20.934,17.0]
[1680372655167,10.0,20.947,20.934,17.0]
[1680372659574,111.0999,20.948,20.935,10.0]
[1680372659773,111.0999,20.948,20.936,17.0]
[1680372660467,111.0999,20.948,20.933,10.0]
[1680372660673,10.0,20.947,20.934,20.0]
[1680372663569,10.0,20.947,20.931,110.1311]
[1680372663871,10.0,20.947,20.927,24.06625436]
[1680372663872,21.53,20.94,20.922,114.3842]
[1680372664258,17.0,20.939,20.922,114.3842]
[1680372664575,10.0,20.938,20.922,114.3842]
[1680372664773,17.0,20.937,20.922,114.3842]
[1680372669278,17.0,20.937,20.923,10.0]
[1680372671173,27.16,20.94,20.923,10.0]
[1680372671381,10.0,20.938,20.923,10.0]
[1680372672884,10.0,20.938,20.925,10.0]
[1680372673066,27.0,20.939,20.925,10.0]
[1680372676186,27.16,20.94,20.925,10.0]
[1680372676377,27.16,20.94,20.927,10.0]
[1680372677874,27.16,20.94,20.926,17.0]
[1680372678166,10.0,20.939,20.926,17.0]
[1680372683794,10.0,20.939,20.924,10.0]
[1680372707911,10.0,20.939,20.926,10.0]
[1680372708413,10.0,20.943,20.926,10.0]
[1680372708604,17.0,20.942,20.926,10.0]
[1680372708816,10.0,20.941,20.926,10.0]
[1680372709003,17.0,20.94,20.926,10.0]
[1680372709205,17.0,20.94,20.926,5.0]
[1680372709406,10.0,20.939,20.926,5.0]
[1680372719732,10.0,20.941,20.926,5.0]
[1680372720622,10.0,20.941,20.925,16.5]
[1680372720808,10.0,20.941,20.926,10.0]
[1680372724518,10.0,20.941,20.926,9.5]
[1680372728729,10.0,20.943,20.926,9.5]
[1680372728924,128.937,20.944,20.928,10.0]
[1680372729319,128.937,20.944,20.929,17.0]
[1680372729515,128.937,20.944,20.93,10.0]
[1680372732025,118.937,20.944,20.932,10.0]
[1680372732531,118.937,20.944,20.933,17.0]
[1680372740730,118.937,20.944,20.934,10.0]
[1680372740936,118.937,20.944,20.935,37.0]
[1680372745547,118.937,20.944,20.935,20.0]
[1680372745748,118.937,20.944,20.933,20.0]
[1680372746045,118.937,20.944,20.934,17.0]
[1680372746238,118.937,20.944,20.935,20.0]
[1680372757063,21.73,20.95,20.936,17.0]
[1680372757558,21.73,20.95,20.937,10.0]
[1680372757745,21.73,20.95,20.938,17.0]
[1680372758052,21.73,20.95,20.939,10.0]
[1680372758257,21.73,20.95,20.94,17.0]
[1680372758440,21.73,20.95,20.941,10.0]
[1680372773370,21.73,20.95,20.943,10.0]
[1680372773667,21.73,20.95,20.944,17.0]
[1680372775357,112.038,20.953,20.944,17.0]
[1680372778554,112.038,20.953,20.941,14.09085415]
[1680372778755,112.038,20.953,20.939,10.0]
[1680372778756,10.0,20.952,20.942,17.0]
[1680372778963,10.0,20.952,20.94,17.0]
[1680372783966,10.0,20.954,20.94,17.0]
[1680372784266,10.0,20.954,20.941,10.0]
[1680372788075,10.0,20.954,20.94,17.0]
[1680372792873,10.0,20.954,20.939,14.19206937]
[1680372793060,10.0,20.954,20.935,20.0]
[1680372793061,10.0,20.949,20.935,20.0]
[1680372794477,10.0,20.949,20.937,10.0]
[1680372800377,17.0,20.948,20.935,20.0]
[1680372800575,17.0,20.948,20.934,20.0]
[1680372800875,10.0,20.947,20.934,20.0]
[1680372804379,10.0,20.947,20.934,30.0]
[1680372816785,10.0,20.947,20.934,20.0]
[1680372817279,10.0,20.949,20.935,17.0]
[1680372817481,21.73,20.95,20.935,17.0]
[1680372817869,21.73,20.95,20.936,10.0]
[1680372828581,21.73,20.95,20.937,17.0]
[1680372828895,21.73,20.95,20.938,10.0]
[1680372829092,21.73,20.95,20.94,10.0]
[1680372832191,128.7496,20.955,20.94,10.0]
[1680372832395,128.7496,20.955,20.941,17.0]
[1680372838301,128.7496,20.955,20.94,10.0]
[1680372839390,128.7496,20.955,20.941,17.0]
[1680372870828,10.0,20.954,20.941,17.0]
[1680372885750,10.0,20.954,20.939,17.0]
[1680372886048,10.0,20.954,20.942,17.0]
[1680372886250,10.0,20.954,20.939,17.0]
[1680372895972,21.72,20.95,20.931,10.0]
[1680372896356,10.0,20.949,20.931,10.0]
[1680372897456,10.0,20.949,20.937,10.0]
[1680372897754,10.0,20.949,20.938,17.0]
[1680372899373,9.90977934,20.949,20.938,17.0]
[1680372900981,9.90977934,20.949,20.937,10.0]
[1680372901277,9.90977934,20.949,20.938,17.0]
[1680372902275,9.90977934,20.949,20.937,10.0]
[1680372902663,9.90977934,20.949,20.931,10.0]
[1680372902864,9.90977934,20.949,20.936,17.0]
[1680372909403,9.90977934,20.949,20.936,16.91913209]
[1680372913200,21.72,20.95,20.936,16.91913209]
[1680372913503,10.0,20.954,20.936,16.91913209]
[1680372913700,10.0,20.952,20.937,10.0]
[1680372913897,10.0,20.952,20.938,17.0]
[1680372914108,10.0,20.952,20.939,10.0]
[1680372915206,10.0,20.952,20.94,17.0]
[1680372915391,10.0,20.952,20.941,10.0]
[1680372918412,10.0,20.954,20.944,17.0]
[1680372919605,10.0,20.954,20.942,17.0]
[1680372922612,19.099723,20.956,20.942,24.17215888]
[1680372922800,19.099723,20.956,20.943,10.0]
[1680372922999,21.72,20.96,20.944,37.0]
[1680372923503,21.72,20.96,20.945,10.0]
[1680372923815,21.72,20.96,20.946,17.0]
[1680372924199,21.72,20.96,20.947,10.0]
[1680372924400,21.72,20.96,20.948,17.0]
[1680372927902,21.72,20.96,20.947,10.0]
[1680372928104,21.72,20.96,20.948,17.0]
[1680372929021,21.72,20.96,20.947,10.0]
[1680372929417,21.72,20.96,20.948,17.0]
[1680372945228,21.72,20.96,20.944,147.57693918]
[1680372945435,10.0,20.959,20.946,10.0]
[1680372945625,10.0,20.959,20.947,17.0]
[1680372947834,10.0,20.959,20.946,17.0]
[1680372951531,10.0,20.959,20.947,10.0]
[1680372951841,10.0,20.959,20.948,17.0]
[1680372955042,21.72,20.96,20.948,17.0]
[1680372955242,47.0,20.965,20.951,10.0]
[1680372955243,37.0,20.965,20.951,10.0]
[1680372955546,37.0,20.965,20.952,20.0]
[1680372955735,37.0,20.965,20.953,17.0]
[1680372956046,37.0,20.965,20.954,20.0]
[1680372956233,37.0,20.965,20.955,10.0]
[1680372956543,37.0,20.965,20.956,20.0]
[1680372959239,21.73,20.97,20.956,20.0]
[1680372959640,115.1681,20.966,20.956,20.0]
[1680372964460,115.1681,20.966,20.955,20.0]
[1680372964851,115.1681,20.966,20.947,23.869]
[1680372964852,37.0,20.965,20.947,23.869]
[1680372965054,21.73,20.96,20.947,23.869]
[1680372965756,21.73,20.96,20.949,10.0]
[1680372966136,21.73,20.96,20.95,17.0]
[1680372966962,10.0,20.964,20.95,17.0]
[1680372967653,10.0,20.964,20.951,10.0]
[1680372968558,10.0,20.964,20.953,10.0]
[1680372969858,142.0237,20.965,20.953,10.0]
[1680372970056,142.0237,20.965,20.954,17.0]
[1680372974761,142.0237,20.965,20.951,10.0]
[1680372974962,10.0,20.964,20.951,10.0]
[1680372975260,10.0,20.964,20.952,17.0]
[1680372981357,10.0,20.964,20.951,10.0]
[1680372981358,10.0,20.964,20.949,10.0]
[1680372981546,10.0,20.964,20.942,62.83461186]
[1680372982855,10.0,20.964,20.949,17.0]
[1680372985467,10.0,20.964,20.95,10.0]
[1680372985645,10.0,20.964,20.951,17.0]
[1680372997875,115.1681,20.966,20.951,17.0]
[1680372998079,115.1681,20.966,20.952,30.0]
[1680372998264,115.1681,20.966,20.953,17.0]
[1680372998580,115.1681,20.966,20.955,10.0]
[1680372998876,115.1681,20.966,20.956,17.0]
[1680372999058,115.1681,20.966,20.956,37.0]
[1680372999775,115.1681,20.966,20.957,10.0]
[1680372999966,115.1681,20.966,20.958,17.0]
[1680373000566,46.86,20.97,20.958,17.0]
[1680373000778,46.86,20.97,20.957,17.0]
[1680373000959,46.86,20.97,20.956,20.0]
[1680373001165,46.86,20.97,20.953,20.0]
[1680373001361,10.0,20.966,20.954,17.0]
[1680373001571,10.0,20.966,20.955,20.0]
[1680373001872,10.0,20.966,20.956,17.0]
[1680373003582,10.0,20.969,20.956,17.0]
[1680373010882,20.0,20.97,20.957,10.0]
[1680373011078,20.0,20.97,20.958,17.0]
[1680373011284,10.0,20.976,20.959,10.0]
[1680373011583,10.0,20.976,20.961,10.0]
[1680373011782,10.0,20.976,20.962,17.0]
[1680373012486,17.17215888,20.976,20.956,10.0]
[1680373012669,17.17215888,20.976,20.957,17.0]
[1680373013682,41.00915888,20.976,20.948,51.53244573]
[1680373013886,10.0,20.966,20.953,20.0]
[1680373014090,120.812,20.966,20.956,20.0]
[1680373014386,120.812,20.966,20.953,20.0]
[1680373014688,120.812,20.966,20.954,10.0]
[1680373014988,110.812,20.966,20.955,20.0]
[1680373015171,110.812,20.966,20.956,17.0]
[1680373015371,110.812,20.966,20.957,10.0]
[1680373015583,110.812,20.966,20.958,17.0]
[1680373019475,110.812,20.966,20.957,17.0]
[1680373019671,110.812,20.966,20.956,17.0]
[1680373026499,110.812,20.966,20.957,10.0]
[1680373026697,110.812,20.966,20.958,17.0]
[1680373026899,110.812,20.966,20.959,10.0]
[1680373027086,119.0745,20.972,20.959,10.0]
[1680373027287,10.0,20.971,20.96,17.0]
[1680373029597,10.0,20.971,20.958,17.0]
[1680373033602,10.0,20.971,20.957,10.0]
[1680373033804,10.0,20.971,20.958,17.0]
[1680373038420,10.0,20.971,20.957,17.0]
[1680373038608,113.8433,20.966,20.957,17.0]
[1680373050226,113.8433,20.966,20.958,10.0]
[1680373050427,113.8433,20.966,20.959,17.0]
[1680373054927,113.8433,20.966,20.958,17.0]
[1680373065442,113.8433,20.966,20.959,10.0]
[1680373065628,113.8433,20.966,20.96,17.0]
[1680373072030,113.8433,20.966,20.958,17.0]
[1680373085052,113.76897851,20.966,20.958,17.0]
[1680373100843,113.76897851,20.966,20.959,17.0]
[1680373101044,113.76897851,20.966,20.957,17.0]
[1680373103552,10.0,20.965,20.956,14.63451688]
[1680373103851,10.0,20.965,20.955,20.0]
[1680373104047,10.0,20.965,20.955,14.13419325]
[1680373104245,10.0,20.965,20.956,20.0]
[1680373104446,10.0,20.965,20.954,20.0]
[1680373104860,10.0,20.965,20.955,17.0]
[1680373105049,10.0,20.965,20.956,20.0]
[1680373105248,10.0,20.965,20.953,20.0]
[1680373106453,10.0,20.965,20.954,17.0]
[1680373106654,10.0,20.965,20.955,20.0]
[1680373106849,10.0,20.965,20.956,17.0]
[1680373109569,10.0,20.965,20.955,20.0]
[1680373109760,123.76897851,20.966,20.956,17.0]
[1680373110065,123.26897851,20.966,20.955,17.0]
[1680373110268,123.26897851,20.966,20.956,20.0]
[1680373110465,123.26897851,20.966,20.957,17.0]
[1680373110654,113.26897851,20.966,20.957,17.0]
[1680373112960,113.26897851,20.966,20.956,20.0]
[1680373113160,10.0,20.965,20.953,20.0]
[1680373113363,10.0,20.965,20.954,17.0]
[1680373113674,10.0,20.965,20.955,20.0]
[1680373113876,10.0,20.965,20.956,17.0]
[1680373116076,113.26897851,20.966,20.956,17.0]
[1680373116475,113.26897851,20.966,20.957,10.0]
[1680373116679,113.26897851,20.966,20.958,17.0]
[1680373122795,113.26897851,20.966,20.957,17.0]
[1680373126792,113.26897851,20.966,20.955,20.0]
[1680373126991,113.26897851,20.966,20.956,20.0]
[1680373127194,119.2467,20.965,20.952,20.0]
[1680373127392,10.0,20.964,20.952,20.0]
[1680373127897,10.0,20.964,20.949,43.866]
[1680373128397,10.0,20.964,20.95,10.0]
[1680373128587,10.0,20.964,20.951,20.0]
[1680373128790,10.0,20.964,20.952,17.0]
[1680373128989,10.0,20.965,20.954,10.0]
[1680373129197,10.0,20.965,20.955,17.0]
[1680373129488,10.0,20.965,20.956,20.0]
[1680373130089,10.0,20.965,20.952,10.0]
[1680373130387,10.0,20.965,20.953,37.0]
[1680373138600,10.0,20.965,20.953,20.0]
[1680373138911,21.67,20.96,20.944,13.98103918]
[1680373139096,21.67,20.96,20.945,50.0]
[1680373139296,10.0,20.958,20.945,30.0]
[1680373139496,37.0,20.957,20.939,60.878]
[1680373139696,21.67,20.95,20.939,37.0]
[1680373141603,21.67,20.95,20.94,17.0]
[1680373141805,21.67,20.95,20.941,10.0]
[1680373142311,21.67,20.95,20.939,37.0]
[1680373142612,10.0,20.954,20.939,37.0]
[1680373142800,17.0,20.953,20.939,37.0]
[1680373143001,17.0,20.953,20.94,10.0]
[1680373143199,10.0,20.952,20.94,10.0]
[1680373145800,10.0,20.952,20.939,37.0]
[1680373147015,10.0,20.949,20.939,37.0]
[1680373148300,17.0,20.948,20.939,37.0]
[1680373148504,20.0,20.947,20.939,37.0]
[1680373148721,17.0,20.946,20.939,37.0]
[1680373149012,20.0,20.945,20.939,37.0]
[1680373149198,10.0,20.944,20.939,37.0]
[1680373149400,17.0,20.943,20.939,37.0]
[1680373149596,10.0,20.942,20.926,10.0]
[1680373149812,26.97,20.94,20.926,10.0]
[1680373150115,10.0,20.939,20.926,10.0]
[1680373150611,10.0,20.939,20.927,17.0]
[1680373150818,10.0,20.939,20.928,10.0]
[1680373152110,10.0,20.939,20.92,38.95472538]
[1680373152315,17.0,20.938,20.921,20.0]
[1680373152615,10.0,20.937,20.922,10.0]
[1680373152818,10.0,20.937,20.923,20.0]
[1680373156925,10.0,20.935,20.92,14.06312701]
[1680373157110,26.97,20.93,20.915,10.0]
[1680373158009,26.97,20.93,20.917,10.0]
[1680373161227,10.0,20.929,20.917,9.5]
[1680373163331,26.97,20.93,20.917,9.5]
[1680373167024,26.97,20.93,20.914,167.88652338]
[1680373167227,17.0,20.929,20.916,10.0]
[1680373169917,26.97,20.93,20.916,10.0]
[1680373170118,119.6737,20.934,20.917,17.0]
[1680373170319,119.6737,20.934,20.918,10.0]
[1680373173526,10.0,20.933,20.918,10.0]
[1680373175632,27.11,20.93,20.914,58.06252338]
[1680373175937,10.0,20.928,20.915,20.0]
[1680373177729,10.0,20.928,20.916,10.0]
[1680373178634,10.0,20.929,20.916,10.0]
[1680373184131,10.0,20.929,20.915,30.0]
[1680373188349,27.11,20.93,20.916,17.0]
[1680373188528,27.11,20.93,20.917,10.0]
[1680373191544,27.11,20.93,20.915,30.0]
[1680373191748,27.0,20.929,20.915,20.0]
[1680373192047,27.0,20.929,20.914,20.0]
[1680373192422,27.11,20.93,20.914,20.0]
[1680373192629,27.11,20.93,20.915,10.0]
[1680373193328,27.11,20.93,20.916,17.0]
[1680373193646,27.11,20.93,20.917,10.0]
[1680373194234,10.0,20.929,20.917,10.0]
[1680373195549,27.11,20.93,20.917,10.0]
[1680373201941,10.0,20.929,20.915,10.0]
[1680373202554,10.0,20.929,20.914,20.0]
[1680373202776,17.0,20.928,20.914,20.0]
[1680373203348,10.0,20.927,20.914,20.0]
[1680373204858,10.0,20.925,20.914,20.0]
[1680373205049,9.5,20.925,20.914,20.0]
[1680373205245,17.0,20.926,20.915,10.0]
[1680373207149,17.0,20.926,20.914,20.0]
[1680373208447,30.0,20.925,20.908,53.14721157]
[1680373208757,17.0,20.924,20.908,14.19248619]
[1680373209461,17.0,20.924,20.91,10.0]
[1680373210655,30.0,20.925,20.91,10.0]
[1680373210857,17.0,20.924,20.91,10.0]
[1680373213662,30.0,20.925,20.91,10.0]
[1680373213961,10.0,20.923,20.91,10.0]
[1680373218175,10.0,20.921,20.91,10.0]
[1680373219260,10.0,20.923,20.91,10.0]
[1680373219753,17.0,20.922,20.91,10.0]
[1680373219953,10.0,20.923,20.91,10.0]
[1680373220356,17.0,20.922,20.91,10.0]
[1680373220864,17.0,20.922,20.908,10.0]
[1680373221066,135.4848,20.922,20.908,10.0]
[1680373221266,10.0,20.921,20.908,10.0]
[1680373221467,118.4848,20.922,20.908,10.0]
[1680373221654,118.4848,20.922,20.911,23.91]
[1680373221854,118.4848,20.922,20.913,10.0]
[1680373222173,112.3494,20.928,20.913,10.0]
[1680373222372,27.14,20.93,20.914,37.0]
[1680373222954,27.14,20.93,20.915,10.0]
[1680373223265,27.14,20.93,20.917,10.0]
[1680373225364,27.14,20.93,20.915,10.0]
[1680373225570,27.0,20.929,20.915,10.0]
[1680373227173,27.0,20.929,20.914,30.0]
[1680373227673,27.0,20.929,20.914,20.0]
[1680373227858,10.0,20.929,20.914,20.0]
[1680373228053,34.31215888,20.93,20.914,20.0]
[1680373228263,27.14,20.93,20.915,10.0]